fUSD/lending_fUSD_20260118
["ID","MTS","AMOUNT","RATE_DAILY","PERIOD"]
[402529951,1768698660451,-500.0,0.0001726,2]
[402529952,1768698660460,-500.0,0.0001726,2]
[402529953,1768698660470,-500.0,0.0001726,2]
[402529954,1768698660479,-500.0,0.0001726,2]
[402529955,1768698660489,-596.07354849,0.0001726,2]
[402529956,1768698660498,-500.0,0.0001726,2]
[402529957,1768698660507,-500.0,0.0001726,2]
[402529958,1768698660517,-500.0,0.0001726,2]
[402529959,1768698660526,-500.0,0.0001726,2]
[402529960,1768698660536,-500.0,0.0001726,2]
[402529961,1768698660545,-500.0,0.0001726,2]
[402529962,1768698660554,-500.0,0.0001726,2]
[402529963,1768698660563,-523.72,0.0001726,2]
[402529964,1768698660573,-500.0,0.0001726,2]
[402529965,1768698660584,-500.0,0.0001726,2]
[402529966,1768698660593,-500.0,0.0001726,2]
[402529967,1768698660603,-500.0,0.0001726,2]
[402529968,1768698660614,-500.0,0.0001726,2]
[402529969,1768698660623,-500.0,0.0001726,2]
[402529970,1768698660632,-384.61261754,0.0001726,2]
[402529971,1768698660643,-500.0,0.0001726,2]
[402529972,1768698660653,-744.66,0.0001726,2]
[402529973,1768698660663,-500.0,0.0001726,2]
[402529974,1768698660673,-605.9,0.0001726,2]
[402529975,1768698660683,-500.0,0.0001726,2]
[402529976,1768698660692,-500.0,0.0001726,2]
[402529977,1768698660701,-500.0,0.0001726,2]
[402529978,1768698660711,-551.42,0.0001726,2]
[402529979,1768698660720,-500.0,0.0001726,2]
[402529980,1768698660729,-658.33,0.0001726,2]
[402529981,1768698660737,-500.0,0.0001726,2]
[402529982,1768698660747,-500.0,0.0001726,2]
[402529983,1768698660755,-500.0,0.0001726,2]
[402529984,1768698660764,-500.0,0.0001726,2]
[402529985,1768698660775,-341.92,0.0001726,2]
[402529986,1768698660784,-500.0,0.0001726,2]
[402529987,1768698660792,-500.0,0.0001726,2]
[402529988,1768698660801,-501.33164798,0.0001726,2]
[402529989,1768698660810,-500.0,0.0001726,2]
[402529990,1768698660819,-500.0,0.0001726,2]
[402529991,1768698660828,-612.18,0.0001726,2]
[402529992,1768698660837,-500.0,0.0001726,2]
[402529993,1768698660846,-500.0,0.0001726,2]
[402529994,1768698660855,-500.0,0.0001726,2]
[402529995,1768698660864,-540.32,0.0001726,2]
[402529996,1768698660874,-528.38,0.0001726,2]
[402529997,1768698660883,-500.0,0.0001726,2]
[402529998,1768698660893,-690.89,0.0001726,2]
[402529999,1768698660903,-500.0,0.0001726,2]
[402530000,1768698660912,-500.0,0.0001726,2]
[402530001,1768698660921,-500.0,0.0001726,2]
[402530002,1768698660931,-660.18,0.0001726,2]
[402530003,1768698660942,-500.0,0.0001726,2]
[402530004,1768698660951,-500.0,0.0001726,2]
[402530005,1768698660960,-500.0,0.0001726,2]
[402530006,1768698660969,-500.0,0.0001726,2]
[402530007,1768698660979,-591.87,0.0001726,2]
[402530008,1768698660988,-164.90158996,0.0001726,2]
[402530009,1768698660997,-500.0,0.0001726,2]
[402530010,1768698661007,-500.0,0.0001726,2]
[402530011,1768698661016,-500.0,0.0001726,2]
[402530012,1768698661025,-500.0,0.0001726,2]
[402530013,1768698661033,-500.0,0.0001726,2]
[402530014,1768698661043,-500.0,0.0001726,2]
[402530015,1768698661051,-500.0,0.0001726,2]
[402530016,1768698661062,-500.0,0.0001726,2]
[402530017,1768698661071,-626.39,0.0001726,2]
[402530018,1768698661080,-500.0,0.0001726,2]
[402530019,1768698661091,-500.0,0.0001726,2]
[402530020,1768698661101,-664.91,0.0001726,2]
[402530021,1768698661109,-500.0,0.0001726,2]
[402530022,1768698661118,-500.0,0.0001726,2]
[402530023,1768698661127,-660.95,0.0001726,2]
[402530024,1768698661136,-500.0,0.0001726,2]
[402530025,1768698661146,-612.83,0.0001726,2]
[402530026,1768698661154,-500.0,0.0001726,2]
[402530027,1768698661165,-500.0,0.0001726,2]
[402530028,1768698661175,-648.75332614,0.0001726,2]
[402530029,1768698661183,-500.0,0.0001726,2]
[402530030,1768698661192,-500.0,0.0001726,2]
[402530031,1768698661202,-500.0,0.0001726,2]
[402530032,1768698661211,-500.0,0.0001726,2]
[402530033,1768698661224,-500.0,0.0001726,2]
[402530034,1768698661233,-500.0,0.0001726,2]
[402530035,1768698661242,-500.0,0.0001726,2]
[402530036,1768698661250,-589.94,0.0001726,2]
[402530037,1768698661260,-603.7,0.0001726,2]
[402530038,1768698661268,-500.0,0.0001726,2]
[402530039,1768698661277,-500.0,0.0001726,2]
[402530040,1768698661289,-500.0,0.0001726,2]
[402530041,1768698661299,-500.0,0.0001726,2]
[402530042,1768698661308,-500.0,0.0001726,2]
[402530043,1768698661317,-654.72,0.0001726,2]
[402530044,1768698661326,-500.0,0.0001726,2]
[402530045,1768698661335,-543.09721806,0.0001726,2]
[402530046,1768698661344,-500.0,0.0001726,2]
[402530047,1768698661354,-500.0,0.0001726,2]
[402530048,1768698661364,-500.0,0.0001726,2]
[402530049,1768698661373,-933.13,0.0001726,2]
[402530050,1768698661382,-500.0,0.0001726,2]
[402530051,1768698661391,-500.0,0.0001726,2]
[402530052,1768698661400,-500.0,0.0001726,2]
[402530053,1768698661411,-570.2,0.0001726,2]
[402530054,1768698661420,-500.0,0.0001726,2]
[402530055,1768698661429,-500.0,0.0001726,2]
[402530056,1768698661438,-600.84,0.0001726,2]
[402530057,1768698661446,-500.0,0.0001726,2]
[402530058,1768698661455,-500.0,0.0001726,2]
[402530059,1768698661464,-500.0,0.0001726,2]
[402530060,1768698661473,-500.0,0.0001726,2]
[402530061,1768698661484,-500.0,0.0001726,2]
[402530062,1768698661494,-500.0,0.0001726,2]
[402530063,1768698661503,-500.0,0.0001726,2]
[402530064,1768698661512,-500.0,0.0001726,2]
[402530065,1768698661521,-383.01,0.0001726,2]
[402530066,1768698661530,-325.56114372,0.0001726,2]
[402530067,1768698661540,-500.0,0.0001726,2]
[402530068,1768698661548,-500.0,0.0001726,2]
[402530069,1768698661559,-500.0,0.0001726,2]
[402530070,1768698661569,-500.0,0.0001726,2]
[402530071,1768698661578,-500.0,0.0001726,2]
[402530072,1768698661589,-500.0,0.0001726,2]
[402530073,1768698661599,-500.0,0.0001726,2]
[402530074,1768698661608,-500.0,0.0001726,2]
[402530075,1768698661619,-377.78091456,0.0001726,2]
[402530076,1768698661630,-500.0,0.0001726,2]
[402530077,1768698661639,-500.0,0.0001726,2]
[402530078,1768698661649,-500.0,0.0001726,2]
[402530079,1768698661659,-500.0,0.0001726,2]
[402530080,1768698661668,-500.0,0.0001726,2]
[402530081,1768698661680,-500.0,0.0001726,2]
[402530082,1768698661691,-782.63,0.0001726,2]
[402530083,1768698661701,-500.0,0.0001726,2]
[402530084,1768698661711,-500.0,0.0001726,2]
[402530085,1768698661720,-500.0,0.0001726,2]
[402530086,1768698661731,-500.0,0.0001726,2]
[402530087,1768698661741,-500.0,0.0001726,2]
[402530088,1768698661752,-500.0,0.0001726,2]
[402530089,1768698661763,-500.0,0.0001726,2]
[402530090,1768698661774,-510.91,0.0001726,2]
[402530091,1768698661785,-500.0,0.0001726,2]
[402530092,1768698661795,-500.0,0.0001726,2]
[402530093,1768698661804,-300.0,0.0001726,2]
[402530094,1768698661813,-500.0,0.0001726,2]
[402530095,1768698661822,-679.15,0.0001726,2]
[402530096,1768698661832,-622.28,0.0001726,2]
[402530097,1768698661842,-500.0,0.0001726,2]
[402530098,1768698661853,-741.27,0.0001726,2]
[402530099,1768698661861,-500.0,0.0001726,2]
[402530100,1768698661872,-500.0,0.0001726,2]
[402530101,1768698661881,-500.0,0.0001726,2]
[402530102,1768698661891,-274.73160791,0.0001726,2]
[402530103,1768698661900,-1336.75,0.0001726,2]
[402530104,1768698661909,-500.0,0.0001726,2]
[402530105,1768698661919,-500.0,0.0001726,2]
[402530106,1768698661930,-500.0,0.0001726,2]
[402530107,1768698661940,-500.0,0.0001726,2]
[402530108,1768698661950,-500.0,0.0001726,2]
[402530109,1768698661959,-500.0,0.0001726,2]
[402530110,1768698661968,-500.0,0.0001726,2]
[402530111,1768698661977,-500.0,0.0001726,2]
[402530112,1768698661986,-500.0,0.0001726,2]
[402530113,1768698661995,-527.62,0.0001726,2]
[402530114,1768698662004,-492.72590728,0.0001726,2]
[402530115,1768698662013,-655.43,0.0001726,2]
[402530116,1768698662022,-500.0,0.0001726,2]
[402530117,1768698662032,-500.0,0.0001726,2]
[402530118,1768698662041,-500.0,0.0001726,2]
[402530119,1768698662051,-809.56,0.0001726,2]
[402530120,1768698662060,-500.0,0.0001726,2]
[402530121,1768698662069,-500.0,0.0001726,2]
[402530122,1768698662078,-643.54,0.0001726,2]
[402530123,1768698662087,-432.91338386,0.0001726,2]
[402530124,1768698662096,-500.0,0.0001726,2]
[402530125,1768698662106,-500.0,0.0001726,2]
[402530126,1768698662115,-500.0,0.0001726,2]
[402530127,1768698662124,-812.63,0.0001726,2]
[402530128,1768698662134,-500.0,0.0001726,2]
[402530129,1768698662143,-500.0,0.0001726,2]
[402530130,1768698662153,-500.0,0.0001726,2]
[402530131,1768698662163,-500.0,0.0001726,2]
[402530132,1768698662173,-500.0,0.0001726,2]
[402530133,1768698662184,-500.0,0.0001726,2]
[402530134,1768698662193,-500.0,0.0001726,2]
[402530135,1768698662204,-500.0,0.0001726,2]
[402530136,1768698662214,-500.0,0.0001726,2]
[402530137,1768698662230,-500.0,0.0001726,2]
[402530138,1768698662241,-500.0,0.0001726,2]
[402530139,1768698662257,-500.0,0.0001726,2]
[402530140,1768698662267,-564.32138625,0.0001726,2]
[402530141,1768698662276,-500.0,0.0001726,2]
[402530142,1768698662286,-500.0,0.0001726,2]
[402530143,1768698662297,-500.0,0.0001726,2]
[402530144,1768698662307,-500.0,0.0001726,2]
[402530145,1768698662317,-500.0,0.0001726,2]
[402530146,1768698662327,-500.0,0.0001726,2]
[402530147,1768698662337,-500.0,0.0001726,2]
[402530148,1768698662346,-934.13,0.0001726,2]
[402530149,1768698662356,-631.0458072,0.0001726,2]
[402530150,1768698662365,-500.0,0.0001726,2]
[402530151,1768698662376,-500.0,0.0001726,2]
[402530152,1768698662385,-500.0,0.0001726,2]
[402530153,1768698662395,-500.0,0.0001726,2]
[402530154,1768698662405,-597.67,0.0001726,2]
[402530155,1768698662413,-500.0,0.0001726,2]
[402530156,1768698662422,-657.14,0.0001726,2]
[402530157,1768698662430,-1063.48,0.0001726,2]
[402530158,1768698662439,-500.0,0.0001726,2]
[402530159,1768698662456,-530.99,0.0001726,2]
[402530160,1768698662465,-500.0,0.0001726,2]
[402530161,1768698662475,-500.0,0.0001726,2]
[402530162,1768698662484,-500.0,0.0001726,2]
[402530163,1768698662627,-471.01055982,0.0001726,2]
[402530164,1768698662638,-650.57,0.0001726,2]
[402530165,1768698662647,-500.0,0.0001726,2]
[402530166,1768698662656,-384.87177549,0.0001726,2]
[402530167,1768698662666,-500.0,0.0001726,2]
[402530168,1768698662675,-667.99,0.0001726,2]
[402530169,1768698662685,-500.0,0.0001726,2]
[402530170,1768698662695,-500.0,0.0001726,2]
[402530171,1768698662706,-755.08,0.0001726,2]
[402530172,1768698662715,-609.3,0.0001726,2]
[402530173,1768698662724,-500.0,0.0001726,2]
[402530174,1768698662734,-500.0,0.0001726,2]
[402530175,1768698662743,-514.83,0.0001726,2]
[402530176,1768698662752,-815.13,0.0001726,2]
[402530177,1768698662761,-562.14,0.0001726,2]
[402530178,1768698662770,-678.01,0.0001726,2]
[402530179,1768698662780,-500.0,0.0001726,2]
[402530180,1768698662788,-538.34,0.0001726,2]
[402530181,1768698662798,-500.0,0.0001726,2]
[402530182,1768698662807,-500.0,0.0001726,2]
[402530183,1768698662815,-1087.35,0.0001726,2]
[402530184,1768698662824,-722.12,0.0001726,2]
[402530185,1768698662834,-500.0,0.0001726,2]
[402530186,1768698662844,-500.0,0.0001726,2]
[402530187,1768698662853,-500.0,0.0001726,2]
[402530188,1768698662862,-500.0,0.0001726,2]
[402530189,1768698662871,-500.0,0.0001726,2]
[402530190,1768698662879,-996.94,0.0001726,2]
[402530191,1768698662885,-500.0,0.0001726,2]
[402530192,1768698662892,-500.0,0.0001726,2]
[402530193,1768698662901,-590.76,0.0001726,2]
[402530194,1768698662908,-500.41991453,0.0001726,2]
[402530195,1768698662915,-500.0,0.0001726,2]
[402530196,1768698662921,-500.0,0.0001726,2]
[402530197,1768698662928,-525.89,0.0001726,2]
[402530198,1768698662936,-500.0,0.0001726,2]
[402530199,1768698662943,-500.0,0.0001726,2]
[402530200,1768698662952,-618.01,0.0001726,2]
[402530201,1768698662961,-594.13,0.0001726,2]
[402530202,1768698662970,-575.6,0.0001726,2]
[402530203,1768698662980,-662.62,0.0001726,2]
[402530204,1768698662989,-500.0,0.0001726,2]
[402530205,1768698662998,-500.0,0.0001726,2]
[402530206,1768698663007,-511.40695034,0.0001726,2]
[402530207,1768698663017,-672.53,0.0001726,2]
[402530208,1768698663026,-500.0,0.0001726,2]
[402530209,1768698663035,-500.0,0.0001726,2]
[402530210,1768698663044,-500.0,0.0001726,2]
[402530211,1768698663054,-500.0,0.0001726,2]
[402530212,1768698663064,-520.69,0.0001726,2]
[402530213,1768698663073,-500.0,0.0001726,2]
[402530214,1768698663083,-613.06,0.0001726,2]
[402530215,1768698663093,-500.0,0.0001726,2]
[402530216,1768698663103,-500.0,0.0001726,2]
[402530217,1768698663113,-500.0,0.0001726,2]
[402530218,1768698663122,-500.0,0.0001726,2]
[402530219,1768698663132,-526.73,0.0001726,2]
[402530220,1768698663142,-500.0,0.0001726,2]
[402530221,1768698663152,-500.0,0.0001726,2]
[402530222,1768698663162,-512.15,0.0001726,2]
[402530223,1768698663172,-500.0,0.0001726,2]
[402530224,1768698663182,-500.0,0.0001726,2]
[402530225,1768698663192,-591.24,0.0001726,2]
[402530226,1768698663203,-556.47,0.0001726,2]
[402530227,1768698663214,-660.93,0.0001726,2]
[402530228,1768698663227,-515.32,0.0001726,2]
[402530229,1768698663236,-500.0,0.0001726,2]
[402530230,1768698663246,-500.0,0.0001726,2]
[402530231,1768698663256,-500.0,0.0001726,2]
[402530232,1768698663267,-500.0,0.0001726,2]
[402530233,1768698663276,-500.0,0.0001726,2]
[402530234,1768698663288,-500.0,0.0001726,2]
[402530235,1768698663298,-500.0,0.0001726,2]
[402530236,1768698663307,-517.54,0.0001726,2]
[402530237,1768698663317,-500.0,0.0001726,2]
[402530238,1768698663326,-500.0,0.0001726,2]
[402530239,1768698663336,-531.76,0.0001726,2]
[402530240,1768698663346,-500.0,0.0001726,2]
[402530241,1768698663355,-500.0,0.0001726,2]
[402530242,1768698663365,-500.0,0.0001726,2]
[402530243,1768698663375,-500.0,0.0001726,2]
[402530244,1768698663384,-600.68,0.0001726,2]
[402530245,1768698663393,-1529.19,0.0001726,2]
[402530246,1768698663403,-500.0,0.0001726,2]
[402530247,1768698663413,-500.0,0.0001726,2]
[402530248,1768698663423,-500.0,0.0001726,2]
[402530249,1768698663433,-500.0,0.0001726,2]
[402530250,1768698663443,-838.7,0.0001726,2]
[402530251,1768698663452,-500.0,0.0001726,2]
[402530252,1768698663462,-500.0,0.0001726,2]
[402530253,1768698663472,-567.94,0.0001726,2]
[402530254,1768698663481,-518.89,0.0001726,2]
[402530255,1768698663491,-673.61,0.0001726,2]
[402530256,1768698663501,-543.14,0.0001726,2]
[402530257,1768698663511,-721.15,0.0001726,2]
[402530258,1768698663520,-320.93939253,0.0001726,2]
[402530259,1768698663530,-500.0,0.0001726,2]
[402530260,1768698663540,-500.0,0.0001726,2]
[402530261,1768698663550,-500.0,0.0001726,2]
[402530262,1768698663559,-500.0,0.0001726,2]
[402530263,1768698663569,-500.0,0.0001726,2]
[402530264,1768698663579,-500.0,0.0001726,2]
[402530265,1768698663589,-795.04,0.0001726,2]
[402530266,1768698663599,-500.0,0.0001726,2]
[402530267,1768698663609,-500.0,0.0001726,2]
[402530268,1768698663619,-500.0,0.0001726,2]
[402530269,1768698663628,-500.0,0.0001726,2]
[402530270,1768698663638,-747.61,0.0001726,2]
[402530271,1768698663648,-500.0,0.0001726,2]
[402530272,1768698663658,-500.0,0.0001726,2]
[402530273,1768698663668,-532.71,0.0001726,2]
[402530274,1768698663678,-500.0,0.0001726,2]
[402530275,1768698663688,-500.0,0.0001726,2]
[402530276,1768698663698,-500.0,0.0001726,2]
[402530277,1768698663708,-500.0,0.0001726,2]
[402530278,1768698663717,-564.09,0.0001726,2]
[402530279,1768698663727,-500.0,0.0001726,2]
[402530280,1768698663736,-880.67,0.0001726,2]
[402530281,1768698663746,-500.0,0.0001726,2]
[402530282,1768698663755,-500.0,0.0001726,2]
[402530283,1768698663765,-583.61,0.0001726,2]
[402530284,1768698663775,-500.0,0.0001726,2]
[402530285,1768698663784,-500.0,0.0001726,2]
[402530286,1768698663793,-500.0,0.0001726,2]
[402530287,1768698663802,-500.0,0.0001726,2]
[402530288,1768698663812,-998.71,0.0001726,2]
[402530289,1768698663822,-153.49299495,0.0001726,2]
[402530290,1768698664439,-543.33,0.00016438,2]
[402530291,1768698664448,-228.88926914,0.00016438,2]
[402530292,1768698664459,-271.11073086,0.00016438,2]
[402530293,1768698664469,-500.12,0.00016438,2]
[402530294,1768698664479,-500.12,0.00016712,2]
[402530295,1768698664490,-346.50700505,0.0001726,2]
[402530296,1768698664500,-500.0,0.0001726,2]
[402530297,1768698664511,-500.0,0.0001726,2]
[402530298,1768698664521,-500.0,0.0001726,2]
[402530299,1768698664531,-337.99642125,0.0001726,2]
[402530300,1768698664552,-538.66357875,0.0001726,2]
[402530301,1768698664562,-500.0,0.0001726,2]
[402530302,1768698664572,-500.0,0.0001726,2]
[402530303,1768698664582,-500.0,0.0001726,2]
[402530304,1768698664592,-500.0,0.0001726,2]
[402530305,1768698664602,-510.62,0.0001726,2]
[402530306,1768698664612,-500.0,0.0001726,2]
[402530307,1768698664621,-500.0,0.0001726,2]
[402530308,1768698664630,-500.0,0.0001726,2]
[402530309,1768698664912,-500.0,0.0001726,2]
[402530310,1768698664974,-500.0,0.0001726,2]
[402530311,1768698664985,-500.0,0.0001726,2]
[402530312,1768698664994,-890.18,0.0001726,2]
[402530313,1768698665004,-500.0,0.0001726,2]
[402530314,1768698665015,-811.3,0.0001726,2]
[402530315,1768698665026,-500.0,0.0001726,2]
[402530316,1768698665035,-500.0,0.0001726,2]
[402530317,1768698665044,-500.0,0.0001726,2]
[402530318,1768698665054,-500.0,0.0001726,2]
[402530319,1768698665063,-500.0,0.0001726,2]
[402530320,1768698665073,-500.0,0.0001726,2]
[402530321,1768698665082,-617.43,0.0001726,2]
[402530322,1768698665092,-742.02,0.0001726,2]
[402530323,1768698665102,-500.0,0.0001726,2]
[402530324,1768698665111,-601.67,0.0001726,2]
[402530325,1768698665120,-521.55,0.0001726,2]
[402530326,1768698665130,-500.0,0.0001726,2]
[402530327,1768698665139,-1195.2,0.0001726,2]
[402530328,1768698665149,-676.44,0.0001726,2]
[402530329,1768698665158,-715.07,0.0001726,2]
[402530330,1768698665168,-945.1,0.0001726,2]
[402530331,1768698665178,-500.0,0.0001726,2]
[402530332,1768698665188,-576.18,0.0001726,2]
[402530333,1768698665198,-500.0,0.0001726,2]
[402530334,1768698665208,-500.0,0.0001726,2]
[402530335,1768698665221,-500.0,0.0001726,2]
[402530336,1768698665234,-500.0,0.0001726,2]
[402530337,1768698665244,-929.43,0.0001726,2]
[402530338,1768698665254,-658.51,0.0001726,2]
[402530339,1768698665266,-500.0,0.0001726,2]
[402530340,1768698665275,-500.0,0.0001726,2]
[402530341,1768698665284,-1186.57,0.0001726,2]
[402530342,1768698665296,-1058.82722253,0.0001726,2]
[402530343,1768698665305,-500.0,0.0001726,2]
[402530344,1768698665314,-804.65,0.0001726,2]
[402530345,1768698665323,-500.0,0.0001726,2]
[402530346,1768698665340,-556.52,0.0001726,2]
[402530347,1768698665349,-601.38742539,0.0001726,2]
[402530348,1768698665359,-500.0,0.0001726,2]
[402530349,1768698665368,-500.0,0.0001726,2]
[402530350,1768698665378,-500.0,0.0001726,2]
[402530351,1768698665388,-958.14,0.0001726,2]
[402530352,1768698665397,-567.08,0.0001726,2]
[402530353,1768698665407,-500.0,0.0001726,2]
[402530354,1768698665416,-872.91,0.0001726,2]
[402530355,1768698665425,-500.0,0.0001726,2]
[402530356,1768698665435,-833.89,0.0001726,2]
[402530357,1768698665445,-500.0,0.0001726,2]
[402530358,1768698665454,-839.94,0.0001726,2]
[402530359,1768698665463,-500.0,0.0001726,2]
[402530360,1768698665473,-500.0,0.0001726,2]
[402530361,1768698665483,-707.98,0.0001726,2]
[402530362,1768698665492,-500.0,0.0001726,2]
[402530363,1768698665501,-963.32,0.0001726,2]
[402530364,1768698665510,-500.0,0.0001726,2]
[402530365,1768698665520,-567.81,0.0001726,2]
[402530366,1768698665529,-500.0,0.0001726,2]
[402530367,1768698665538,-500.0,0.0001726,2]
[402530368,1768698665549,-500.0,0.0001726,2]
[402530369,1768698665558,-500.0,0.0001726,2]
[402530370,1768698665568,-235.54903469,0.0001726,2]
[402530371,1768698665578,-500.0,0.0001726,2]
[402530372,1768698665587,-1118.6,0.0001726,2]
[402530373,1768698665597,-500.0,0.0001726,2]
[402530374,1768698665607,-500.0,0.0001726,2]
[402530375,1768698665617,-579.96,0.0001726,2]
[402530376,1768698665627,-767.08,0.0001726,2]
[402530377,1768698665636,-500.0,0.0001726,2]
[402530378,1768698665647,-597.37,0.0001726,2]
[402530379,1768698665656,-500.0,0.0001726,2]
[402530380,1768698665666,-926.65,0.0001726,2]
[402530381,1768698665676,-500.0,0.0001726,2]
[402530382,1768698665686,-526.05,0.0001726,2]
[402530383,1768698665701,-1077.63,0.0001726,2]
[402530384,1768698665712,-500.0,0.0001726,2]
[402530385,1768698665722,-838.61,0.0001726,2]
[402530386,1768698665732,-500.0,0.0001726,2]
[402530387,1768698665743,-587.08,0.0001726,2]
[402530388,1768698665753,-500.0,0.0001726,2]
[402530389,1768698665763,-522.86,0.0001726,2]
[402530390,1768698665772,-500.0,0.0001726,2]
[402530391,1768698665782,-564.65,0.0001726,2]
[402530392,1768698665792,-500.0,0.0001726,2]
[402530393,1768698665802,-500.0,0.0001726,2]
[402530394,1768698665812,-500.0,0.0001726,2]
[402530395,1768698665821,-500.0,0.0001726,2]
[402530396,1768698665831,-513.81,0.0001726,2]
[402530397,1768698665841,-512.65,0.0001726,2]
[402530398,1768698665852,-500.0,0.0001726,2]
[402530399,1768698665861,-503.46,0.0001726,2]
[402530400,1768698665871,-750.04,0.0001726,2]
[402530401,1768698665881,-1013.69,0.0001726,2]
[402530402,1768698665891,-653.37,0.0001726,2]
[402530403,1768698665901,-500.0,0.0001726,2]
[402530404,1768698665910,-500.0,0.0001726,2]
[402530405,1768698665920,-228.81502609,0.0001726,2]
[402530406,1768698665930,-512.66,0.0001726,2]
[402530407,1768698665939,-500.0,0.0001726,2]
[402530408,1768698665949,-863.05,0.0001726,2]
[402530409,1768698665959,-500.0,0.0001726,2]
[402530410,1768698665969,-500.0,0.0001726,2]
[402530411,1768698665979,-500.0,0.0001726,2]
[402530412,1768698665988,-500.0,0.0001726,2]
[402530413,1768698665998,-500.0,0.0001726,2]
[402530414,1768698666008,-500.0,0.0001726,2]
[402530415,1768698666017,-181.28153748,0.0001726,2]
[402530416,1768698666027,-500.0,0.0001726,2]
[402530417,1768698666037,-994.07,0.0001726,2]
[402530418,1768698666046,-500.0,0.0001726,2]
[402530419,1768698666060,-787.16,0.0001726,2]
[402530420,1768698666070,-500.0,0.0001726,2]
[402530421,1768698666080,-500.0,0.0001726,2]
[402530422,1768698666090,-500.0,0.0001726,2]
[402530423,1768698666100,-161.00552046,0.0001726,2]
[402530424,1768698666109,-500.0,0.0001726,2]
[402530425,1768698666119,-608.92,0.0001726,2]
[402530426,1768698666129,-500.0,0.0001726,2]
[402530427,1768698666139,-500.0,0.0001726,2]
[402530428,1768698666148,-500.0,0.0001726,2]
[402530429,1768698666158,-500.0,0.0001726,2]
[402530430,1768698666168,-500.0,0.0001726,2]
[402530431,1768698666179,-500.0,0.0001726,2]
[402530432,1768698666189,-500.0,0.0001726,2]
[402530433,1768698666199,-671.86,0.0001726,2]
[402530434,1768698666209,-676.09,0.0001726,2]
[402530435,1768698666223,-565.03,0.0001726,2]
[402530436,1768698666233,-500.0,0.0001726,2]
[402530437,1768698666243,-500.0,0.0001726,2]
[402530438,1768698666256,-500.0,0.0001726,2]
[402530439,1768698666267,-500.0,0.0001726,2]
[402530440,1768698666277,-500.0,0.0001726,2]
[402530441,1768698666287,-9019.17,0.0001726,2]
[402530442,1768698666299,-500.0,0.0001726,2]
[402530443,1768698666309,-500.0,0.0001726,2]
[402530444,1768698666319,-500.0,0.0001726,2]
[402530445,1768698666330,-500.0,0.0001726,2]
[402530446,1768698666339,-600.0,0.0001726,2]
[402530447,1768698666349,-425.29992997,0.0001726,2]
[402530448,1768698666359,-1000.0,0.0001726,2]
[402530449,1768698666368,-150.0,0.0001726,2]
[402530450,1768698666378,-155.0,0.00017268,2]